bitfinex-derivatives/quotes_BTCF0:USTF0_20241003
["timestamp","ask_amount","ask_price","bid_price","bid_amount"]
[1727915678697,0.081964,61011.0,61008.0,0.081967]
[1727915678881,0.0624,61010.0,61008.0,0.081967]
[1727915679077,0.081968,61008.0,61007.0,1.50084]
[1727915679394,0.081968,61008.0,60998.0,0.081982]
[1727915679395,0.081978,61002.0,60998.0,0.081982]
[1727915679596,0.28,60999.0,60998.0,0.081982]
[1727915679787,0.6408,61008.0,61002.0,0.081976]
[1727915680291,0.28,61003.0,60998.0,1.582862]
[1727915680485,0.08198,60999.0,60998.0,1.581982]
[1727915680791,0.28,61003.0,60998.0,1.5]
[1727915680792,0.081977,61002.0,60998.0,1.5]
[1727915680979,0.3608,61008.0,60998.0,1.5]
[1727915680980,0.081973,61005.0,60998.0,1.5]
[1727915681178,0.3608,61008.0,61007.0,0.002]
[1727915681485,0.3608,61008.0,60998.0,1.50088]
[1727915681486,0.48689493,61008.0,60998.0,1.50088]
[1727915681691,0.20186311,61007.0,61006.0,0.081971]
[1727915681886,0.12609493,61007.0,61006.0,0.081971]
[1727915682595,0.12609493,61007.0,61006.0,1.581971]
[1727915683088,0.05880702,61007.0,61006.0,1.581971]
[1727915683478,0.12609493,61007.0,61006.0,1.581971]
[1727915684094,0.12709493,61007.0,61006.0,1.581971]
[1727915685188,0.20906493,61007.0,61006.0,1.5]
[1727915685892,0.05980702,61007.0,61006.0,1.581971]
[1727915687396,0.06080702,61007.0,61006.0,1.581971]
[1727915687893,0.05980702,61007.0,61006.0,1.581971]
[1727915688590,0.001,61007.0,61006.0,1.581971]
[1727915689092,0.002,61007.0,61006.0,1.581971]
[1727915689794,0.001,61007.0,61006.0,1.581971]
[1727915690599,0.3608,61008.0,61007.0,0.08197]
[1727915690985,0.031,61010.0,61009.0,0.081967]
[1727915692901,0.038,61010.0,61009.0,0.081967]
[1727915693114,0.119966,61010.0,61009.0,0.081967]
[1727915694303,0.038,61010.0,61009.0,0.081967]
[1727915694501,0.007,61010.0,61009.0,0.081967]
[1727915695899,0.088966,61010.0,61009.0,0.081967]
[1727915696100,0.21504056,61010.0,61009.0,0.07377031]
[1727915696594,0.13307456,61010.0,61009.0,0.07377031]
[1727915696795,0.21504056,61010.0,61009.0,0.07377031]
[1727915697097,0.21504056,61010.0,61006.0,0.082891]
[1727915697098,0.08197,61007.0,61006.0,0.082891]
[1727915697296,0.42076805,61007.0,61006.0,0.081971]
[1727915697897,0.42076805,61007.0,61002.0,1.50084]
[1727915697898,0.081975,61004.0,61002.0,1.50084]
[1727915698102,0.081975,61004.0,60993.0,0.00245922]
[1727915698103,0.081979,61000.0,60998.0,0.081981]
[1727915698399,0.42077805,60999.0,60998.0,0.081981]
[1727915698598,0.42077805,60999.0,60998.0,1.581981]
[1727915698798,0.33879805,60999.0,60993.0,0.00245922]
[1727915699004,0.081984,60997.0,60996.0,0.081983]
[1727915699199,0.081986,60996.0,60993.0,0.00245922]
[1727915699503,0.20806056,60995.0,60994.0,1.5]
[1727915699891,0.48806056,60995.0,60994.0,1.5]
[1727915700209,0.081987,60994.0,60993.0,0.00245922]
[1727915700501,0.05879805,60994.0,60993.0,0.08444722]
[1727915700696,0.05879805,60994.0,60993.0,1.58444722]
[1727915701703,0.05879805,60994.0,60993.0,1.59544722]
[1727915701891,0.05979805,60994.0,60993.0,1.59544722]
[1727915702091,0.48906156,60994.0,60993.0,0.011]
[1727915702298,0.49006156,60994.0,60993.0,0.022]
[1727915703214,0.42278505,60994.0,60993.0,0.022]
[1727915703592,0.363987,60994.0,60993.0,0.022]
[1727915704604,0.002,60994.0,60993.0,0.103988]
[1727915707209,0.002,60994.0,60993.0,0.022]
[1727915707510,0.002,60994.0,60977.0,0.04861493]
[1727915707511,2.09544,60994.0,60977.0,0.04861493]
[1727915707698,0.28,60984.0,60976.0,0.036]
[1727915707904,0.28,60984.0,60974.0,0.04861493]
[1727915707905,0.082005,60981.0,60974.0,0.13062893]
[1727915708120,0.082005,60981.0,60969.0,0.04861493]
[1727915708310,0.442805,60981.0,60966.0,0.05241493]
[1727915708506,0.442805,60981.0,60970.0,0.082019]
[1727915708697,0.442805,60981.0,60980.0,0.01545983]
[1727915708901,0.442805,60981.0,60980.0,0.02845983]
[1727915709103,1.81356,60981.0,60966.0,0.0038]
[1727915709299,0.28,60967.0,60958.0,0.08449476]
[1727915709509,0.7216,60981.0,60958.0,0.00246076]
[1727915709510,0.082032,60961.0,60958.0,0.00246076]
[1727915709718,0.28,60959.0,60958.0,0.00246076]
[1727915711101,0.001,60961.0,60959.0,0.082034]
[1727915711814,0.28,60963.0,60959.0,0.082034]
[1727915712000,0.08203,60962.0,60959.0,0.082034]
[1727915712412,0.002,60961.0,60959.0,0.082034]
[1727915713009,0.084032,60961.0,60958.0,0.00246076]
[1727915713410,0.362034,60959.0,60958.0,0.00246076]
[1727915713609,0.082043,60953.0,60948.0,0.082049]
[1727915713813,0.28,60949.0,60948.0,0.082049]
[1727915714203,0.362048,60949.0,60948.0,0.082049]
[1727915714519,0.28,60949.0,60948.0,1.5]
[1727915715215,0.282,60949.0,60948.0,1.5]
[1727915715520,0.282,60949.0,60948.0,1.582049]
[1727915715816,0.364048,60949.0,60948.0,1.5]
[1727915716001,0.7742,60949.0,60936.0,0.3608]
[1727915716203,0.28,60938.0,60937.0,0.082064]
[1727915716410,0.28,60938.0,60937.0,1.582064]
[1727915716709,0.28,60943.0,60937.0,1.5]
[1727915716911,0.28,60939.0,60937.0,1.5]
[1727915717216,0.28,60939.0,60938.0,0.082062]
[1727915717713,0.3608,60940.0,60937.0,0.00084]
[1727915717916,0.3608,60940.0,60939.0,0.082061]
[1727915718221,0.3608,60940.0,60939.0,1.582061]
[1727915718810,0.44286,60940.0,60939.0,1.5]
[1727915719409,0.3608,60940.0,60939.0,1.5]
[1727915719618,0.3608,60940.0,60939.0,1.582061]
[1727915720012,0.28,60947.0,60939.0,1.5]
[1727915720316,0.3608,60948.0,60947.0,0.08205]
[1727915720907,0.00246204,60952.0,60951.0,0.082045]
[1727915722117,0.01146204,60952.0,60951.0,0.082045]
[1727915723207,0.01646204,60952.0,60951.0,0.082045]
[1727915723410,0.082045,60951.0,60947.0,0.08205]
[1727915723723,0.082045,60951.0,60942.0,0.0362]
[1727915724110,0.082045,60951.0,60948.0,0.082048]
[1727915724311,0.082045,60951.0,60949.0,0.082047]
[1727915724511,0.29146204,60952.0,60950.0,0.082046]
[1727915724712,0.002,60951.0,60950.0,0.082046]
[1727915726419,0.005,60951.0,60950.0,0.082046]
[1727915726619,0.004,60951.0,60950.0,0.082046]
[1727915726817,0.007,60951.0,60950.0,0.082046]
[1727915727020,0.004,60951.0,60950.0,0.082046]
[1727915727612,0.002,60951.0,60950.0,0.082046]
[1727915728926,0.002,60951.0,60942.0,0.0362]
[1727915729218,0.362057,60943.0,60941.0,0.082058]
[1727915729423,0.08206,60940.0,60939.0,0.00084]
[1727915729621,0.08206,60940.0,60939.0,0.00088]
[1727915729810,0.08206,60940.0,60938.0,0.082062]
[1727915730015,0.3608,60942.0,60938.0,0.082062]
[1727915730016,0.082061,60939.0,60938.0,0.082062]
[1727915730212,0.3608,60942.0,60935.0,0.00246131]
[1727915730516,0.442857,60942.0,60941.0,0.082058]
[1727915730822,0.082057,60942.0,60941.0,0.082058]
[1727915731128,0.1018849,60942.0,60941.0,0.082058]
[1727915731421,0.082058,60941.0,60937.0,0.082064]
[1727915731619,0.28,60938.0,60935.0,0.00246131]
[1727915731820,0.082065,60936.0,60935.0,0.00246131]
[1727915733228,0.082065,60936.0,60931.0,0.082071]
[1727915733229,0.08207,60933.0,60931.0,0.082071]
[1727915733424,0.28,60932.0,60931.0,0.082071]
[1727915735514,0.29897641,60932.0,60931.0,0.082071]
[1727915736320,0.29997641,60932.0,60931.0,0.082071]
[1727915736522,0.30097641,60932.0,60931.0,0.082071]
[1727915736928,0.38304741,60932.0,60931.0,0.082071]
[1727915737121,0.38304741,60932.0,60925.0,0.082079]
[1727915737122,0.082076,60928.0,60925.0,0.082079]
[1727915737319,0.082076,60928.0,60918.0,0.00246236]
[1727915737320,0.28,60924.0,60923.0,0.082083]
[1727915737530,0.28,60928.0,60918.0,0.00246236]
[1727915737724,0.28,60928.0,60919.0,1.5]
[1727915738137,0.28,60928.0,60927.0,0.082077]
[1727915739035,0.281,60928.0,60927.0,0.082077]
[1727915739925,0.282,60928.0,60927.0,0.082077]
[1727915740729,0.002,60928.0,60927.0,0.53889299]
[1727915740934,0.03478827,60930.0,60927.0,0.45681599]
[1727915741135,0.03478827,60930.0,60929.0,0.12969435]
[1727915741337,0.28,60931.0,60929.0,0.45681599]
[1727915741523,0.362072,60931.0,60930.0,0.45681599]
[1727915742031,0.362072,60931.0,60930.0,0.57032016]
[1727915742230,0.362072,60931.0,60930.0,0.45682772]
[1727915743123,0.363072,60931.0,60930.0,0.53890072]
[1727915745039,0.082055,60944.0,60930.0,1.41761452]
[1727915745336,0.36326179,60954.0,60947.0,0.08205]
[1727915745337,0.01902084,60948.0,60947.0,0.08205]
[1727915745536,0.0363,60953.0,60947.0,0.45670818]
[1727915745736,0.0363,60953.0,60951.0,0.11338513]
[1727915745938,0.118342,60953.0,60952.0,0.27730984]
[1727915746135,0.13767941,60953.0,60952.0,0.27730984]
[1727915746531,1.22987941,60953.0,60948.0,0.00088]
[1727915746738,0.082046,60950.0,60949.0,0.09720586]
[1727915746933,0.082061,60940.0,60935.0,0.0038]
[1727915747136,0.28,60936.0,60934.0,0.082068]
[1727915747442,0.28,60936.0,60931.0,0.0382]
[1727915747745,0.082069,60933.0,60931.0,0.0382]
[1727915748343,0.28,60936.0,60931.0,0.0382]
[1727915748648,0.082071,60932.0,60931.0,0.0382]
[1727915750052,0.001,60932.0,60931.0,0.0382]
[1727915750249,0.002,60932.0,60931.0,0.0382]
[1727915750549,0.3628,60932.0,60931.0,0.0382]
[1727915750738,0.444871,60932.0,60931.0,0.120272]
[1727915751244,0.3608,60949.0,60931.0,0.481072]
[1727915751551,0.3608,60949.0,60947.0,0.04858815]
[1727915751848,0.082046,60951.0,60948.0,0.082049]
[1727915752041,0.082046,60951.0,60950.0,0.06476687]
[1727915752642,0.082046,60951.0,60949.0,0.06476687]
[1727915752945,0.082046,60950.0,60949.0,0.06476687]
[1727915753174,0.02767283,60951.0,60950.0,0.082046]
[1727915753867,0.03667283,60951.0,60950.0,0.082046]
[1727915754571,0.02867283,60951.0,60950.0,0.082046]
[1727915754760,0.03567283,60951.0,60950.0,0.14682464]
[1727915755455,0.02767283,60951.0,60950.0,0.082046]
[1727915755658,0.03767283,60951.0,60950.0,0.082046]
[1727915755869,0.06836943,60951.0,60950.0,0.082046]
[1727915756066,0.05836943,60951.0,60950.0,0.082046]
[1727915756273,0.06036943,60951.0,60950.0,0.082046]
[1727915756765,0.3187,60968.0,60960.0,0.082033]
[1727915756766,0.05885436,60961.0,60960.0,0.082033]
[1727915756958,0.082033,60961.0,60950.0,0.362046]
[1727915757159,0.082033,60961.0,60951.0,0.082045]
[1727915757368,0.082034,60959.0,60958.0,0.082034]
[1727915757568,0.08203,60963.0,60955.0,0.082039]
[1727915757569,0.082037,60958.0,60955.0,0.082039]
[1727915757758,0.0375,60962.0,60955.0,0.082039]
[1727915757961,0.082038,60956.0,60955.0,0.082039]
[1727915759271,0.281,60958.0,60951.0,1.50092]
[1727915759568,0.004,60956.0,60951.0,1.5]
[1727915759771,0.004,60956.0,60955.0,0.08204]
[1727915759972,0.011,60956.0,60955.0,0.08204]
[1727915760669,0.004,60956.0,60951.0,0.00084]
[1727915760867,0.004,60956.0,60938.0,0.0753]
[1727915760868,0.28,60952.0,60938.0,0.0753]
[1727915761068,0.28,60947.0,60938.0,0.0377]
[1727915761283,0.362058,60942.0,60941.0,0.082057]
[1727915761468,0.08206,60940.0,60937.0,0.44532539]
[1727915761661,0.05037786,60939.0,60937.0,1.86326139]
[1727915761862,0.05037786,60938.0,60937.0,1.94532539]
[1727915762668,0.05037786,60938.0,60937.0,0.45132539]
[1727915763168,0.05037786,60938.0,60937.0,0.09052539]
[1727915763363,0.13243986,60938.0,60937.0,0.09052539]
[1727915763568,0.05137786,60938.0,60937.0,0.09052539]
[1727915763766,0.083062,60938.0,60937.0,0.09052539]
[1727915764866,0.083062,60938.0,60937.0,0.08652539]
[1727915764867,0.002,60938.0,60937.0,0.08652539]
[1727915765776,0.002,60938.0,60937.0,0.57884539]
[1727915765978,0.002,60938.0,60937.0,0.08652539]
[1727915766369,0.002,60938.0,60937.0,1.58652539]
[1727915769679,0.084062,60938.0,60937.0,0.00446139]
[1727915770376,0.002,60938.0,60937.0,0.08652539]
[1727915770764,0.05237964,60938.0,60937.0,0.08652539]
[1727915772884,0.01961562,60951.0,60948.0,0.082049]
[1727915773081,0.00246185,60955.0,60954.0,0.082041]
[1727915773376,0.05886821,60958.0,60953.0,0.3608]
[1727915773577,0.21380124,60963.0,60962.0,0.08203]
[1727915773778,0.21248124,60972.0,60962.0,1.86203]
[1727915774073,0.00246115,60974.0,60973.0,0.082015]
[1727915775269,0.38162911,60984.0,60968.0,0.28]
[1727915775570,0.011,60974.0,60973.0,0.082015]
[1727915775772,0.011,60974.0,60966.0,0.0361]
[1727915775967,0.011,60974.0,60965.0,0.3608]
[1727915775968,0.28,60969.0,60965.0,0.3608]
[1727915776168,0.362021,60969.0,60965.0,0.3608]
[1727915776368,0.082024,60967.0,60965.0,0.3608]
[1727915777077,0.082025,60966.0,60963.0,0.082029]
[1727915777977,0.082025,60966.0,60965.0,0.008]
[1727915778169,0.08203,60962.0,60957.0,0.082036]
[1727915778373,0.05036115,60961.0,60957.0,0.082036]
[1727915778569,0.28,60966.0,60956.0,0.0024608]
[1727915778773,0.0726,60968.0,60956.0,0.0024608]
[1727915778774,0.082037,60957.0,60956.0,0.0024608]
[1727915780174,0.094037,60957.0,60956.0,0.0024608]
[1727915781172,0.01397,60957.0,60956.0,0.0024608]
[1727915781384,0.01397,60957.0,60956.0,0.0844988]
[1727915781385,0.01497,60957.0,60956.0,0.0844988]
[1727915781590,0.01497,60957.0,60956.0,0.0024608]
[1727915781770,0.377007,60957.0,60956.0,0.0024608]
[1727915782187,2.04602989,60957.0,60941.0,0.082058]
[1727915782490,0.362053,60945.0,60938.0,1.5]
[1727915782982,0.3608,60940.0,60933.0,0.0385]
[1727915783171,0.6408,60940.0,60937.0,0.08452339]
[1727915783370,0.6408,60940.0,60939.0,0.082061]
[1727915784084,0.6408,60940.0,60937.0,0.00246139]
[1727915784481,0.3608,60940.0,60939.0,0.082061]
[1727915784682,0.001,60940.0,60939.0,0.082061]
[1727915784984,0.002,60940.0,60939.0,0.087061]
[1727915785573,0.002,60940.0,60939.0,1.179341]
[1727915785982,0.05237249,60940.0,60939.0,1.179341]
[1727915786183,0.05137249,60940.0,60939.0,1.179341]
[1727915786381,0.05237249,60940.0,60939.0,1.179341]
[1727915786692,0.002,60940.0,60939.0,0.579341]
[1727915787380,0.002,60940.0,60939.0,1.587061]
[1727915787986,0.05237128,60940.0,60939.0,1.587061]
[1727915789088,0.05137128,60940.0,60939.0,2.079341]
[1727915789391,0.05885986,60954.0,60939.0,2.87728]
[1727915789687,0.00197,60957.0,60956.0,0.082038]
[1727915789883,0.00197,60957.0,60956.0,0.362038]
[1727915790377,0.00197,60957.0,60956.0,1.862038]
[1727915790578,0.00197,60957.0,60956.0,1.582038]
[1727915790985,0.01497,60957.0,60956.0,1.582038]
[1727915791175,0.097007,60957.0,60956.0,1.5]
[1727915791381,0.108007,60957.0,60956.0,1.501]
[1727915793183,0.099007,60957.0,60956.0,1.5]
[1727915793585,0.00397,60957.0,60956.0,1.582038]
[1727915793777,0.00397,60957.0,60956.0,1.862038]
[1727915793981,0.00697,60957.0,60956.0,1.862038]
[1727915794183,0.01297,60957.0,60956.0,1.862038]
[1727915794883,0.01197,60957.0,60956.0,1.582038]
[1727915795290,0.00697,60957.0,60956.0,1.582038]
[1727915795585,0.01097,60957.0,60956.0,1.582038]
[1727915796186,0.00597,60957.0,60956.0,1.582038]
[1727915796882,0.00197,60957.0,60956.0,1.586038]
[1727915797685,0.00197,60957.0,60956.0,1.582038]
[1727915797993,0.00297,60957.0,60956.0,1.587038]
[1727915798581,0.00297,60957.0,60956.0,1.584038]
[1727915799487,0.00197,60957.0,60956.0,1.584038]
[1727915800183,0.00197,60957.0,60956.0,0.085038]
[1727915800992,0.00197,60957.0,60956.0,0.005]
[1727915801192,0.084007,60957.0,60956.0,0.005]
[1727915801391,0.084007,60957.0,60956.0,0.087038]
[1727915801689,0.00197,60957.0,60956.0,0.082038]
[1727915801906,0.00497,60957.0,60956.0,0.082038]
[1727915802697,0.00897,60957.0,60956.0,0.082038]
[1727915803595,0.00997,60957.0,60956.0,0.082038]
[1727915803796,0.00897,60957.0,60956.0,0.082038]
[1727915804300,0.00597,60957.0,60956.0,0.082038]
[1727915804504,0.00497,60957.0,60956.0,0.082038]
[1727915804699,0.00697,60957.0,60956.0,0.082038]
[1727915805797,0.00397,60957.0,60956.0,0.082038]
[1727915806002,0.00697,60957.0,60956.0,0.082038]
[1727915806195,0.00497,60957.0,60956.0,0.082038]
[1727915806392,0.00197,60957.0,60956.0,0.086038]
[1727915806994,0.00197,60957.0,60956.0,0.082038]
[1727915807197,0.00397,60957.0,60956.0,0.088038]
[1727915807601,0.00297,60957.0,60956.0,0.088038]
[1727915809011,0.05332983,60957.0,60956.0,0.088038]
[1727915809209,0.05432983,60957.0,60956.0,0.088038]
[1727915809400,0.05332983,60957.0,60956.0,0.082038]
[1727915809604,0.05332983,60957.0,60956.0,0.086038]
[1727915809921,0.05232983,60957.0,60956.0,0.086038]
[1727915810597,0.05232983,60957.0,60956.0,0.087038]
[1727915810798,0.21248124,60964.0,60956.0,0.087038]
[1727915810799,0.21248124,60964.0,60956.0,2.01796]
[1727915811003,0.0038,60979.0,60978.0,0.082009]
[1727915811196,0.01935837,60979.0,60978.0,0.362009]
[1727915811398,0.081984,60996.0,60978.0,2.91306]
[1727915811704,0.38052757,60997.0,60978.0,2.91306]
[1727915811705,0.01972757,60997.0,60988.0,0.28]
[1727915811901,0.0384,60998.0,60996.0,0.081984]
[1727915812604,0.05757252,60998.0,60996.0,0.081984]
[1727915812796,0.05757252,60998.0,60988.0,0.28]
[1727915812997,0.26134983,60995.0,60988.0,0.28]
[1727915813198,0.26134983,60995.0,60977.0,0.44661]
[1727915813199,0.28,60993.0,60978.0,0.0411]
[1727915813396,0.26134983,60995.0,60987.0,0.081996]
[1727915813397,0.28,60989.0,60987.0,0.081996]
[1727915813801,0.28,60989.0,60988.0,1.581995]
[1727915814304,0.05883543,60989.0,60988.0,0.081995]
[1727915814705,0.05883543,60992.0,60991.0,0.081991]
[1727915814905,0.05983543,60993.0,60991.0,0.081991]
[1727915815209,0.001,60993.0,60991.0,0.081991]
[1727915815602,0.05983543,60993.0,60991.0,0.081991]
[1727915815804,0.361987,60994.0,60991.0,0.081991]
[1727915816106,0.361987,60994.0,60979.0,1.78]
[1727915816107,0.3608,60997.0,60979.0,1.78]
[1727915816305,0.05757252,60998.0,60997.0,0.081983]
[1727915816611,0.0384,60998.0,60997.0,0.081983]
[1727915817208,0.01916609,61002.0,60994.0,0.6408]
[1727915817404,0.00245985,61005.0,61004.0,0.081974]
[1727915817603,0.461,61009.0,61008.0,0.081968]
[1727915817909,0.1221,61014.0,61001.0,0.28]
[1727915818098,0.1221,61014.0,61006.0,0.28]
[1727915818303,0.0419,61014.0,61013.0,0.081962]
[1727915819712,0.014,61014.0,61011.0,0.28]
[1727915819917,0.028,61014.0,61013.0,0.443762]
[1727915820705,0.014,61014.0,61013.0,1.943762]
[1727915820903,0.028,61014.0,61013.0,1.943762]
[1727915821301,0.028,61014.0,61013.0,2.435442]
[1727915821503,0.028,61014.0,61013.0,3.035442]
[1727915821915,0.028,61014.0,61013.0,3.034442]
[1727915822210,0.014,61014.0,61013.0,3.034442]
[1727915822411,0.028,61014.0,61013.0,3.034442]
[1727915822613,0.014,61014.0,61013.0,3.034442]
[1727915822810,0.007,61014.0,61013.0,3.035442]
[1727915823108,0.016,61014.0,61013.0,3.035442]
[1727915823318,0.0229452,61033.0,61013.0,3.035442]
[1727915823509,0.0826,61034.0,61013.0,3.035442]
[1727915823510,0.3608,61035.0,61025.0,0.28]
[1727915823708,0.01936433,61035.0,61034.0,0.081933]
[1727915824012,0.081928,61038.0,61026.0,0.3608]
[1727915824212,0.081929,61037.0,61031.0,0.081936]
[1727915824615,0.28,61033.0,61026.0,0.442743]
[1727915824808,0.28,61027.0,61021.0,0.0024581]
[1727915825113,0.28,61027.0,61024.0,0.081947]
[1727915825710,0.28,61027.0,61025.0,0.001]
[1727915826209,0.375943,61027.0,61025.0,0.001]
[1727915826716,0.375943,61027.0,61024.0,0.081947]
[1727915826717,0.081945,61025.0,61024.0,0.001]
[1727915827115,0.081957,61017.0,61013.0,0.443602]
[1727915827414,0.0429,61024.0,61014.0,0.28]
[1727915827608,0.0429,61024.0,61022.0,0.081949]
[1727915827808,0.124847,61024.0,61018.0,0.081955]
[1727915828010,0.124847,61024.0,61013.0,0.3608]
[1727915828210,0.28,61019.0,61018.0,0.081954]
[1727915828405,0.3229,61024.0,61018.0,0.081955]
[1727915828611,0.3229,61024.0,61013.0,0.3608]
[1727915828813,0.081953,61020.0,61014.0,0.081959]
[1727915829016,0.3359,61024.0,61018.0,0.001]
[1727915829421,0.081953,61020.0,61018.0,0.002]
[1727915829614,0.28,61019.0,61018.0,0.002]
[1727915829809,0.361953,61019.0,61018.0,0.002]
[1727915830008,0.28,61019.0,61018.0,0.001]
[1727915830211,0.361953,61019.0,61018.0,0.001]
[1727915830507,0.081959,61015.0,61014.0,0.001]
[1727915830815,0.081959,61015.0,60996.0,0.28]
[1727915830816,0.442759,61015.0,61000.0,0.0038]
[1727915831021,0.081968,61009.0,60998.0,0.16056398]
[1727915831317,0.16797278,61008.0,61005.0,0.081971]
[1727915831621,0.081971,61006.0,61005.0,0.081971]
[1727915831929,0.081976,61003.0,60999.0,1.5]
[1727915832109,0.12607278,61002.0,60999.0,1.5]
[1727915832309,0.12607278,61001.0,61000.0,0.081979]
[1727915833014,0.12607278,61001.0,61000.0,0.361979]
[1727915833219,0.12607278,61001.0,61000.0,0.853779]
[1727915833417,0.03537068,61001.0,61000.0,1.453779]
[1727915833914,0.03537068,61001.0,61000.0,1.454779]
[1727915834614,0.03537068,61001.0,61000.0,0.854779]
[1727915834806,0.03637068,61001.0,61000.0,0.854779]
[1727915835009,0.03637068,61001.0,61000.0,0.281]
[1727915835512,0.03737068,61001.0,61000.0,0.287]
[1727915835810,0.10930114,61003.0,61001.0,0.4918]
[1727915836119,0.33922978,61018.0,61013.0,0.081962]
[1727915836320,0.00377872,61030.0,61013.0,0.081962]
[1727915836321,0.06726821,61017.0,61016.0,0.081958]
[1727915836519,0.0038,61032.0,61016.0,0.081958]
[1727915836520,0.0038,61033.0,61016.0,1.77328]
[1727915836720,0.33922978,61039.0,61035.0,0.081932]
[1727915836924,0.509394,61054.0,61032.0,0.6408]
[1727915836925,0.42597973,61067.0,61050.0,1.0]
[1727915837123,0.07573902,61067.0,61066.0,0.28]
[1727915837419,0.081877,61076.0,61066.0,0.28]
[1727915837620,0.0843,61085.0,61066.0,0.28]
[1727915837621,0.07573902,61084.0,61066.0,0.28]
[1727915837923,0.0843,61085.0,61053.0,0.00245641]
[1727915837924,0.0843,61085.0,61073.0,0.28]
[1727915838228,0.07572268,61084.0,61080.0,0.08187]
[1727915838413,0.0411,61085.0,61080.0,0.08187]
[1727915838414,0.1429571,61083.0,61080.0,0.08187]
[1727915838613,0.18279543,61087.0,61081.0,0.28]
[1727915838614,0.1429571,61082.0,61081.0,0.28]
[1727915838913,0.28,61082.0,61061.0,0.28]
[1727915839113,0.28,61077.0,61066.0,0.081889]
[1727915839322,0.401,61093.0,61049.0,0.0082]
[1727915839323,0.014,61085.0,61076.0,0.28]
[1727915839518,0.008,61083.0,61081.0,0.08187]
[1727915839727,0.008,61083.0,61082.0,0.28]
[1727915840317,0.001,61085.0,61081.0,0.08187]
[1727915840924,0.001,61085.0,61076.0,0.007]
[1727915841127,0.001,61085.0,61084.0,0.28]
[1727915841628,0.001,61085.0,61084.0,0.44]
[1727915841925,0.0398,61092.0,61084.0,0.44]
[1727915842222,0.0398,61092.0,61090.0,0.44]
[1727915842628,0.3608,61093.0,61090.0,0.44]
[1727915843019,0.3608,61093.0,61077.0,0.00245568]
[1727915843020,0.081874,61078.0,61077.0,0.00245568]
[1727915843220,0.44,61083.0,61060.0,0.44]
[1727915843519,0.081881,61073.0,61064.0,0.081892]
[1727915843827,0.081865,61085.0,61054.0,0.00084]
[1727915843828,0.081897,61061.0,61054.0,0.00084]
[1727915844033,0.081865,61085.0,61056.0,0.44]
[1727915844034,0.081883,61072.0,61056.0,0.44]
[1727915844326,0.00245745,61074.0,61068.0,0.081887]
[1727915844526,0.00245745,61074.0,61070.0,0.081885]
[1727915845026,0.00245745,61074.0,61071.0,0.081883]
[1727915845237,0.081867,61084.0,61071.0,0.44]
[1727915845428,0.081867,61084.0,61078.0,0.081874]
[1727915846128,0.001,61083.0,61078.0,0.081874]
[1727915846522,0.001,61083.0,61071.0,0.003]
[1727915846718,0.081877,61076.0,61071.0,0.003]
[1727915846921,0.081869,61082.0,61078.0,0.002]
[1727915847116,0.44,61083.0,61071.0,0.003]
[1727915847316,0.44,61077.0,61054.0,0.44]
[1727915847520,0.44,61077.0,61060.0,0.081898]
[1727915847723,0.44,61077.0,61050.0,1.00084]
[1727915847724,0.44,61066.0,61050.0,1.0]
[1727915847923,0.45896,61077.0,61050.0,1.00084]
[1727915847924,0.3608,61054.0,61050.0,1.00084]
[1727915848235,0.442707,61054.0,61050.0,1.00084]
[1727915848423,0.442707,61054.0,61050.0,1.0]
[1727915848617,0.081911,61051.0,61050.0,1.0]
[1727915849017,1.0914,61051.0,61042.0,0.00092]
[1727915849315,0.44,61049.0,61036.0,0.00245754]
[1727915849517,0.081928,61038.0,61036.0,0.00245754]
[1727915850127,0.081921,61044.0,61042.0,0.008]
[1727915850328,0.001,61051.0,61046.0,0.081917]
[1727915850525,0.081921,61043.0,61042.0,0.008]
[1727915851024,0.441,61049.0,61036.0,0.01245754]
[1727915851226,0.44,61043.0,61036.0,0.01245754]
[1727915852021,0.44,61043.0,61036.0,0.00645754]
[1727915852022,0.081927,61039.0,61036.0,0.00645754]
[1727915852325,0.081927,61039.0,61037.0,0.081929]
[1727915853130,0.002,61043.0,61040.0,0.081925]
[1727915853828,0.08192,61044.0,61040.0,0.081925]
[1727915854026,0.7687967,61054.0,61043.0,0.08081463]
[1727915854231,0.081908,61053.0,61052.0,0.04804514]
[1727915854439,0.2460097,61054.0,61048.0,0.08081463]
[1727915854627,0.081909,61052.0,61051.0,0.08081463]
[1727915854824,0.2460097,61054.0,61053.0,0.081908]
[1727915855221,0.081908,61053.0,61052.0,0.08003603]
[1727915855427,0.014,61053.0,61050.0,0.08003603]
[1727915855637,0.081913,61049.0,61048.0,0.08003603]
[1727915855832,0.521913,61049.0,61048.0,0.12486327]
[1727915856030,0.44,61049.0,61047.0,0.0800583]
[1727915856234,0.2500097,61054.0,61045.0,0.0800583]
[1727915856534,0.44,61049.0,61048.0,0.06407759]
[1727915856732,0.081915,61048.0,61047.0,0.06407759]
[1727915856929,0.081915,61048.0,61040.0,0.0800754]
[1727915857130,0.081924,61041.0,61040.0,0.0800754]
[1727915857436,0.081925,61040.0,61039.0,0.0800754]
[1727915857836,0.081925,61040.0,61039.0,0.20495346]
[1727915858031,0.081925,61040.0,61039.0,0.2049976]
[1727915858335,0.081922,61043.0,61039.0,0.12487806]
[1727915858534,0.081922,61043.0,61042.0,0.08013235]
[1727915858731,0.0346,61047.0,61041.0,0.08013235]
[1727915859035,0.081925,61040.0,61039.0,0.08013235]